Cogmind - Beta 13 @@@ ROGUE MODE // 2024.04.28 @ 17:44:34 Player: Lunace Result: Destroyed by Cetus Guard with Advanced Variable Charge Gun Performance ------------- Evolutions (4) 2000 Regions Visited (9) 1800 Robots Destroyed (163) 815 Value Destroyed (5052) 5052 Prototype IDs (41) 820 Alien Tech Used (0) 0 Bonus (1559) 1559 TOTAL SCORE: 12046 Bonus ------- High Alert Combat Kills 902 Follower Combat Kills 404 Aligned with FarCom 300 Friendly Fire -47 Cogmind --------- Core Integrity 0/850 Matter 43/300 Energy 99/100 System Corruption 0% Temperature Cool (9) Movement Core (50) Location -6/Cetus Parts ------- > --- POWER (1) -------- (None) > --- PROPULSION (5) --- (None) > --- UTILITY (7) ------ Advanced Signal Interpreter Improved Terrain Scan Processor System Shield > --- WEAPON (2) ------- (None) > --- INVENTORY (5) ---- Light Angular Momentum Engine Transmission Jammer System Shield Impact Mace Peak State ------------ > --- POWER ------------ Antimatter Reactor > --- PROPULSION ------- Cooled Airjet Cooled Airjet Cooled Airjet Cooled Airjet Improved Gravmag System > --- UTILITY ---------- Medium Storage Unit Advanced Terrain Scanner Improved Terrain Scan Processor Hacking Suite System Shield Long-range Tractor Beam Trap Reconfigurator > --- WEAPON ----------- Advanced KE Penetrator Advanced KE Penetrator > --- INVENTORY -------- Micro Nuclear Core Light Angular Momentum Engine Transmission Jammer System Shield Advanced KE Penetrator Proton Missile Launcher Heavy Missile Launcher Heavy Missile Launcher Rocket Array Impact Mace [Rating: 79] Favorites ----------- Power Light Ion Engine Engine Light Ion Engine Power Core Micro Nuclear Core Reactor Antimatter Reactor Propulsion Cooled Airjet Treads Light Treads Leg Carbon-fiber Leg Hover Unit Cooled Airjet Flight Unit Cooled VTOL Module Utility Hacking Suite Device Trap Reconfigurator Storage Medium Storage Unit Processor Improved Terrain Scan Processor Hackware Hacking Suite Protection Hardened Medium Armor Plating Weapon Enhanced Autogun Energy Gun EM Pulse Gun Ballistic Gun Enhanced Autogun Ballistic Cannon Assault Cannon Launcher Heavy Missile Launcher Impact Weapon Impact Mace Build | -11 -10 -10 -10 -9 -8 -7 -6 -6 -6 ------- Run | Yrd Mat Min Exi Min Mat Fac Fac Ext Cet Slots Evolved 8 | . . . . . 4 2 2 . . Power . | . . . . . . . . . . Propulsion 3 | . . . . . 2 . 1 . . Utility 5 | . . . . . 2 2 1 . . Weapon . | . . . . . . . . . . Parts Attached 159 | 6 10 10 2 . 44 41 16 25 5 Power 24 | 1 1 2 . . 6 8 4 1 1 Engine 10 | 1 . 1 . . 4 1 2 . 1 Core 11 | . 1 1 . . 2 6 1 . . Reactor 3 | . . . . . . 1 1 1 . Propulsion 40 | 2 2 2 . . 12 8 5 9 . Treads 1 | . . . . . . . . 1 . Leg 19 | 2 2 2 . . 5 . . 8 . Wheel . | . . . . . . . . . . Hover 19 | . . . . . 7 8 4 . . Flight 1 | . . . . . . . 1 . . Utility 39 | 1 2 2 2 . 8 12 4 8 . Device 21 | . 1 1 1 . 2 9 2 5 . Storage 5 | 1 1 . 1 . 2 . . . . Processor 4 | . . . . . . 1 1 2 . Hackware 6 | . . . . . 3 2 1 . . Protection 3 | . . 1 . . 1 . . 1 . Artifact . | . . . . . . . . . . Weapon 56 | 2 5 4 . . 18 13 3 7 4 Energy Gun 4 | 2 1 . . . 1 . . . . Energy Cannon . | . . . . . . . . . . Ballistic Gun 24 | . 4 2 . . 8 5 1 2 2 Ballistic Cannon 5 | . . 1 . . 2 1 . . 1 Launcher 18 | . . 1 . . 7 4 1 4 1 Special Weapon . | . . . . . . . . . . Impact Weapon 5 | . . . . . . 3 1 1 . Slashing Weapon . | . . . . . . . . . . Piercing Weapon . | . . . . . . . . . . Special Melee Weapon . | . . . . . . . . . . Unidentified Prototypes 16 | . . . . . 6 9 1 . . Parts Lost 33 | . . . . . 6 2 1 10 14 Power 1 | . . . . . . . . . 1 Propulsion 13 | . . . . . 4 . . 4 5 Utility 8 | . . . . . . 1 1 3 3 Weapon 11 | . . . . . 2 1 . 3 5 Highest Loss Streak 14 | . . . . . 5 1 1 3 14 To Critical Strikes 2 | . . . . . . . . . 2 Average Slot Usage (%) 96 | . 99 99 100 100 93 98 97 92 62 Engine 4 | . 12 1 14 14 7 . . . 2 Core 3 | . 1 12 . . 1 6 1 . . Reactor 1 | . . . . . . . 3 6 3 Leg 15 | . 28 28 28 28 20 . . 21 14 Hover 14 | . . . . . 10 29 30 10 . Device 12 | . 13 13 14 14 11 10 19 12 1 Storage 9 | . 14 14 14 14 9 7 6 6 3 Processor 2 | . . . . . . 3 4 8 13 Hackware 12 | . . . . . 11 22 14 13 11 Energy Gun 1 | . 18 . . . . . . . . Ballistic Gun 8 | . 9 21 14 14 8 6 4 2 7 Ballistic Cannon 1 | . . 1 14 14 2 . . . . Launcher 3 | . . 4 . . 6 3 3 4 2 Impact Weapon 2 | . . . . . . 4 4 3 . Naked Turns . | . . . . . . . . . . Heaviest Build 52 | 12 18 24 22 22 46 32 41 52 51 Greatest Support 75 | 20 20 27 27 27 47 33 43 75 75 Greatest Overweight (x) 13 | . . . . . 13 . 1 1 . Average Overweight (x) . | . . . . . . . . . . Largest Inventory Capacity 15 | 8 10 10 10 10 15 10 10 10 10 Average Capacity 10 | 7 9 10 10 10 13 10 10 10 8 Most Carried 15 | 1 10 10 10 10 15 10 10 10 7 Average Carried 9 | . 5 9 9 10 11 9 8 8 5 Final Capacity 10 | 8 10 10 10 10 10 10 10 10 5 Final Carried 10 | 1 10 10 10 10 9 10 8 7 4 Class Distribution -------------------- 43% | Mutant 35% | Hacker-Mutant 7% | Scavenger-Mutant 5% | Hacker-Ninja 3% | Scavenger-Assassin Dominant Class ---------------- Mutant | -10/Materials Mutant | -10/Mines Mutant | -10/Exiles Mutant | -9/Mines Mutant | -8/Materials Hacker-Mutant | -7/Factory Hacker-Ninja | -6/Factory Scavenger-Mutant | -6/Extension Scavenger-Mutant | -6/Cetus Resources | -11 -10 -10 -10 -9 -8 -7 -6 -6 -6 ----------- Run | Yrd Mat Min Exi Min Mat Fac Fac Ext Cet Matter Collected 3521 | 163 217 102 82 10 1072 1072 225 578 . Remotely 511 | . . . . . . 447 64 . . Salvage Created 5205 | . 386 158 . . 2298 1137 412 801 13 Parts 243 | . 28 17 . . 107 54 10 26 1 Haulers Intercepted 13 | . 2 . . . 3 7 1 . . Recyclers Shooed 4 | . 1 . . . 2 1 . . . Parts Field Recycled . | . . . . . . . . . . Retrieved Matter . | . . . . . . . . . . Parts Self-Destructed . | . . . . . . . . . . Prevented . | . . . . . . . . . . Kills | -11 -10 -10 -10 -9 -8 -7 -6 -6 -6 ------- Run | Yrd Mat Min Exi Min Mat Fac Fac Ext Cet Combat Hostiles Destroyed 101 | . 5 10 . . 36 22 3 24 1 Melee 4 | . . . . . . 2 . 2 . Guns 22 | . 4 4 . . 6 2 1 4 1 Cannons 1 | . . . . . 1 . . . . AOE 67 | . 1 6 . . 27 18 . 15 . Classes Destroyed 20 | . 8 . . . 4 4 . 4 . Worker 8 | . . . . . 4 4 . . . Builder 17 | . 1 . . . 4 7 . 5 . Tunneler 1 | . 1 . . . . . . . . Hauler 13 | . 2 . . . 3 7 1 . . Recycler 7 | . 1 . . . 3 2 1 . . Mechanic 2 | . . . . . 2 . . . . Operator 4 | . 1 . . . 2 1 . . . Watcher 13 | . 2 . . . 4 5 . 1 1 Swarmer 21 | . 2 8 . . 3 5 . 3 . Saboteur 1 | . . . . . . . . 1 . Grunt 46 | . 3 2 . . 25 3 2 11 . Brawler 3 | . . . . . 2 . . 1 . Duelist 1 | . . . . . . . . 1 . Protector 3 | . . . . . . 3 . . . Sentry 10 | . . . . . 6 . 1 3 . Demolisher 1 | . . . . . . . . 1 . Specialist 2 | . . . . . . 2 . . . Hunter 6 | . . . . . . 4 . 2 . Programmer 5 | . . . . . . 5 . . . Behemoth 1 | . . . . . . . . 1 . Cetus Guard 1 | . . . . . . . . . 1 Best Kill Streak 15 | . 7 3 . . 15 10 2 13 2 Combat Bots Only 10 | . 3 3 . . 6 9 2 10 1 Max Kills in Single Turn 5 | . 4 2 . . 4 5 1 3 1 Gunslinging . | . . . . . . . . . . Exploded 4 | . 1 2 . . 2 4 . 3 . Melee 1 | . . . . . . 1 . 1 . Uniques/NPCs Destroyed . | . . . . . . . . . . Combat | -11 -10 -10 -10 -9 -8 -7 -6 -6 -6 -------- Run | Yrd Mat Min Exi Min Mat Fac Fac Ext Cet Hostile Shots Fired 486 | . 31 30 . . 99 83 30 117 96 Missed 182 | . 12 13 . . 27 47 15 41 27 Damage Taken 6180 | . 220 197 . . 1457 886 187 1395 1838 Core 1347 | . 21 70 . . 201 191 49 193 622 Absorbed by Shields . | . . . . . . . . . . Regen/Repaired (Parts) 125 | . . . . . 62 63 . . . Core Remaining (%) 74 | 100 . . . 63 63 72 . . . Volleys Fired 277 | . 28 17 . . 112 54 8 41 17 Largest 2 | . 2 2 . . 2 2 2 2 2 Hottest 92 | . 80 40 . . 50 78 70 70 92 Shots Fired 387 | . 56 29 . . 135 83 10 47 27 Gun 240 | . 56 24 . . 54 60 4 24 18 Cannon 33 | . . . . . 29 . . . 4 Launcher 114 | . . 5 . . 52 23 6 23 5 Special . | . . . . . . . . . . Kinetic 237 | . 20 24 . . 83 60 4 24 22 Thermal . | . . . . . . . . . . Explosive 76 | . . 5 . . 21 23 . 22 5 Electromagnetic 74 | . 36 . . . 31 . 6 1 . Robot Hit Streak 20 | . 6 8 . . 16 20 3 9 17 Robot Miss Streak 5 | . 3 2 . . 3 4 2 5 2 Penetration Max 1 | . . . . . . . . 1 1 Secondary Targets 1 | . . . . . . . . 1 . Max Gunslinging Chain 1 | . . . . . . . . 1 . Shots Hit Robots 276 | . 27 16 . . 89 72 13 41 18 Core Hits 284 | . 17 15 . . 88 66 4 79 15 Critical Kills 4 | . . . . . . . . 4 . Critical Parts Destroyed 13 | . . . . . . 5 2 3 3 Critical Strikes 22 | . 1 . . . 1 5 2 8 5 Destroy 11 | . . . . . . 1 . 5 5 Blast 1 | . . . . . 1 . . . . Corrupt 1 | . 1 . . . . . . . . Smash 9 | . . . . . . 4 2 3 . Melee Attacks 68 | . . . . . . 33 12 23 . Impact 68 | . . . . . . 33 12 23 . Slashing . | . . . . . . . . . . Piercing . | . . . . . . . . . . Sneak Attacks 20 | . . . . . . 12 2 6 . Combat Hostiles 3 | . . . . . . . . 3 . Follow-up Attacks . | . . . . . . . . . . Damage Inflicted 19594 | . 741 265 . . 5105 6709 849 4822 1103 Guns 3016 | . 361 119 . . 708 841 56 477 454 Cannons 487 | . . . . . 444 . . . 43 Explosions 12757 | . 380 146 . . 3952 4010 254 3409 606 Melee 3326 | . . . . . . 1851 539 936 . Ramming 8 | . . . . . 1 7 . . . Kinetic 3246 | . 104 119 . . 1152 841 56 477 497 Thermal 394 | . . . . . 211 183 . . . Explosive 10111 | . 380 146 . . 1743 3827 . 3409 606 Electromagnetic 2509 | . 257 . . . 1998 . 254 . . Impact 3326 | . . . . . . 1851 539 936 . Slashing . | . . . . . . . . . . Piercing . | . . . . . . . . . . Highest Corruption 2 | . . . . . . 2 2 2 . Average Corruption 1 | . . . . . . 1 1 1 . Corruption Purged 2 | . . . . . . . . 2 . Corruption Blocked . | . . . . . . . . . . Effects 14 | . . . . . . 11 1 2 . Message Errors 4 | . . . . . . 3 1 . . Matter Fused 5 | . . . . . . 3 . 2 . Energy Discharges 1 | . . . . . . 1 . . . Data Loss (minor) 1 | . . . . . . 1 . . . Data Loss (major) 2 | . . . . . . 2 . . . Alerts 1 | . . . . . . 1 . . . Overload Shots . | . . . . . . . . . . Overflow Damage 2451 | . 56 . . . 98 1336 287 674 . Projectiles 58 | . . . . . 3 55 . . . Explosions 480 | . 56 . . . 95 159 . 170 . Melee 1913 | . . . . . . 1122 287 504 . Knockbacks 19 | . . . . . 3 12 . 4 . Impact 14 | . . . . . . 10 . 4 . Kinetic 3 | . . . . . 3 . . . . Secondary 2 | . . . . . . 2 . . . Self-Inflicted Damage 452 | . . . . . 136 290 . 26 . Shots 23 | . . . . . 10 12 . 1 . Rammed 2 | . . . . . 1 1 . . . Targets Rammed 2 | . . . . . 1 1 . . . Kicked . | . . . . . . . . . . Crushed . | . . . . . . . . . . Highest Temperature 138 | . 138 26 . . 80 20 5 44 72 Average Temperature 23 | . 50 9 . . 15 8 3 19 36 Received Heat Transfer 1251 | . 42 54 . . 630 45 51 231 198 Siege Activations . | . . . . . . . . . . Robots Corrupted 4 | . . . . . 2 . 2 . . Combat Hostiles 4 | . . . . . 2 . 2 . . Parts Fried 39 | . 1 . . . 11 17 2 8 . Impact Corruptions 72 | . . . . . . 48 8 16 . Robots Melted . | . . . . . . . . . . Combat Hostiles . | . . . . . . . . . . Parts Melted . | . . . . . . . . . . Heat Transferred 550 | . . . . . 450 100 . . . Parts Sabotaged . | . . . . . . . . . . Parts Stolen . | . . . . . . . . . . Parts Stripped . | . . . . . . . . . . Power Chain Reactions 11 | . . . . . 11 . . . . Alert | -11 -10 -10 -10 -9 -8 -7 -6 -6 -6 ------- Run | Yrd Mat Min Exi Min Mat Fac Fac Ext Cet Peak Influence 1089 | . 242 343 . . 1057 605 457 1089 534 Initial 516 | . . 61 . . . 480 228 223 516 Average 379 | . 132 190 . . 541 327 353 605 483 Maximum Alert Level 3 | . 1 1 . . 3 2 2 3 2 Low Security (%) 30 | 100 65 66 . 100 23 27 . . . Level 1 26 | . 34 33 . . 11 28 68 27 . Level 2 27 | . . . . . 21 44 31 36 100 Level 3 15 | . . . . . 43 . . 35 . Level 4 . | . . . . . . . . . . Level 5 . | . . . . . . . . . . High Security . | . . . . . . . . . . Max Security . | . . . . . . . . . . Squads Dispatched 27 | . 4 2 . . 8 8 1 4 . Investigation 10 | . 3 1 . . 1 4 . 1 . Extermination 2 | . . . . . . 2 . . . Reinforcement 11 | . 1 . . . 5 2 1 2 . Assault 3 | . . 1 . . 1 . . 1 . Garrison 1 | . . . . . 1 . . . . Intercept . | . . . . . . . . . . Searches Triggered . | . . . . . . . . . . Construction Impeded 4 | . . . . . 2 1 . 1 . Haulers Reinforced 1 | . . . . . . . 1 . . Active Scanning Responses . | . . . . . . . . . . Cargo Convoy Interrupts 1 | . . . . . . 1 . . . Stealth | -11 -10 -10 -10 -9 -8 -7 -6 -6 -6 --------- Run | Yrd Mat Min Exi Min Mat Fac Fac Ext Cet Distress Signals 12 | . 2 . . . 6 2 . 1 1 Communications Jammed . | . . . . . . . . . . Distress Signals . | . . . . . . . . . . Times Spotted 168 | . 12 11 . . 52 45 6 38 4 Peak Tracking Total 15 | . 4 3 . . 5 15 2 7 5 Tactical Retreats 15 | . 1 . . . 9 4 1 . . Traps | -11 -10 -10 -10 -9 -8 -7 -6 -6 -6 ------- Run | Yrd Mat Min Exi Min Mat Fac Fac Ext Cet Traps Triggered 10 | . 5 1 . . . 1 1 2 . Indirectly 1 | . . . . . . . . 1 . Trap Hack Attempts . | . . . . . . . . . . Triggered . | . . . . . . . . . . Disarmed . | . . . . . . . . . . Reprogrammed . | . . . . . . . . . . Reused 6 | . . . . . 2 4 . . . Traps Reconfigurated 61 | . . . . . 4 57 . . . Traps Extracted . | . . . . . . . . . . Installed . | . . . . . . . . . . Triggered 8 | . 1 . . . 2 5 . . . Objects Rigged 6 | . 6 . . . . . . . . Exploded 1 | . 1 . . . . . . . . Machines | -11 -10 -10 -10 -9 -8 -7 -6 -6 -6 ---------- Run | Yrd Mat Min Exi Min Mat Fac Fac Ext Cet Machines Disabled 28 | . 4 . . . 8 9 2 5 . Max in Single Turn 4 | . 2 . . . 1 4 1 1 . Garrison Access 2 | . . . . . 1 1 . . . Energy Cycler 1 | . . . . . . . . 1 . Machines Repaired . | . . . . . . . . . . Machines Dismantled . | . . . . . . . . . . Machines Sabotaged . | . . . . . . . . . . Overloaded Fab Kills . | . . . . . . . . . . Hacking | -11 -10 -10 -10 -9 -8 -7 -6 -6 -6 --------- Run | Yrd Mat Min Exi Min Mat Fac Fac Ext Cet Machines Accessed 57 | . 5 3 2 . 10 25 4 8 . Terminals 38 | . 4 1 . . 8 15 2 8 . Fabricators 6 | . . . . . . 4 2 . . Repair Stations 3 | . . . . . 1 2 . . . Recycling Units 2 | . 1 . . . . 1 . . . Scanalyzers 1 | . . . . . . 1 . . . Garrison Access 3 | . . . . . 1 2 . . . Total Hacks 178 | . 22 4 2 . 29 87 12 22 . Successful 112 | . 11 3 2 . 16 61 7 12 . Failed 66 | . 11 1 . . 13 26 5 10 . Catastrophic 9 | . 1 . . . 4 3 . 1 . Database Lockouts . | . . . . . . . . . . Manual 139 | . 20 . 1 . 25 68 9 16 . Terminals 132 | . 19 2 . . 23 59 7 22 . Fabricators 14 | . . . . . . 9 5 . . Repair Stations 9 | . . . . . 2 7 . . . Recycling Units 6 | . 3 . . . . 3 . . . Scanalyzers 4 | . . . . . . 4 . . . Garrison Access 9 | . . . . . 4 5 . . . Terminal Hacks 39 | . 2 3 2 . 4 20 2 6 . Record 3 | . . . 1 . . 1 1 . . Prototype ID Bank 1 | . . . . . . 1 . . . Open Door 5 | . . 2 . . . . . 3 . Terminal Index 3 | . 1 . . . . 1 1 . . Garrison Index 1 | . . . . . . 1 . . . Alert Level 2 | . . . . . . 2 . . . Unreport Threat 5 | . . . . . . 5 . . . Locate Traps 7 | . . . . . 3 3 . 1 . Transport Status 2 | . . . . . . 2 . . . Investigation Status 1 | . . . . . . 1 . . . Recall Investigation 2 | . . . . . . 1 . 1 . Recall Reinforcements 2 | . . . . . . 1 . 1 . Hauler Manifests 1 | . . . . . . 1 . . . Registered Components 2 | . 1 . . . 1 . . . . Zone Layout 1 | . . 1 . . . . . . . Derelict Proto ID Bank 1 | . . . 1 . . . . . . Fabricator Hacks 6 | . . . . . . 4 2 . . Network Status 5 | . . . . . . 4 1 . . Build 1 | . . . . . . . 1 . . Repair Station Hacks 8 | . . . . . 2 6 . . . Scan Component 4 | . . . . . 1 3 . . . Repair 4 | . . . . . 1 3 . . . Recycling Unit Hacks 2 | . 1 . . . . 1 . . . Report Inventory 2 | . 1 . . . . 1 . . . Scanalyzer 2 | . . . . . . 2 . . . Insert Component 1 | . . . . . . 1 . . . Analyze 1 | . . . . . . 1 . . . Garrison Access Hacks 2 | . . . . . 1 1 . . . Seal Access 2 | . . . . . 1 1 . . . Unauthorized Hacks 53 | . 8 . . . 9 27 3 6 . Terminals 38 | . 6 . . . 8 16 2 6 . Assimilate 4 | . . . . . 2 2 . . . Botnet 30 | . 4 . . . 6 14 2 4 . Detonate 1 | . 1 . . . . . . . . Disrupt 2 | . . . . . . . . 2 . Operators 1 | . 1 . . . . . . . . Fabricators 5 | . . . . . . 4 1 . . Report 1 | . . . . . . 1 . . . Prioritize 1 | . . . . . . 1 . . . Fabnet 1 | . . . . . . 1 . . . Haulers 2 | . . . . . . 1 1 . . Repair Stations 1 | . . . . . . 1 . . . Mechanics 1 | . . . . . . 1 . . . Recycling Units 4 | . 2 . . . . 2 . . . Monitor 2 | . 1 . . . . 1 . . . Recyclers 2 | . 1 . . . . 1 . . . Scanalyzers . | . . . . . . . . . . Garrison Access 5 | . . . . . 1 4 . . . Broadcast 1 | . . . . . . 1 . . . Redirect 1 | . . . . . . 1 . . . Reprogram 1 | . . . . . . 1 . . . Watchers 2 | . . . . . 1 1 . . . Data Cores Recovered 1 | . . . . . . 1 . . . Used . | . . . . . . . . . . Hacking Detections 42 | . 4 1 . . 7 20 4 6 . Full Trace Events 5 | . . . . . 1 3 . 1 . Feedback Events 1 | . . . . . . 1 . . . Corruption 1 | . . . . . . 1 . . . Feedback Blocked . | . . . . . . . . . . Robot Schematics Acquired . | . . . . . . . . . . Robots Built 1 | . . . . . . . 1 . . Authchips . | . . . . . . . . . . Time 40 | . . . . . . . 40 . . Total Robot Build Rating 1 | . . . . . . . 1 . . Part Schematics Acquired . | . . . . . . . . . . Parts Built . | . . . . . . . . . . Authchips . | . . . . . . . . . . Time . | . . . . . . . . . . Total Part Build Rating . | . . . . . . . . . . Parts Repaired 4 | . . . . . 1 3 . . . Time 152 | . . . . . 44 108 . . . Parts Recycled . | . . . . . . . . . . Recycled Matter . | . . . . . . . . . . Retrieved Matter . | . . . . . . . . . . Retrieved Components . | . . . . . . . . . . Parts Scanalyzed 1 | . . . . . . 1 . . . Part Schematics Acquired . | . . . . . . . . . . Parts Damaged . | . . . . . . . . . . Bothacking | -11 -10 -10 -10 -9 -8 -7 -6 -6 -6 ------------ Run | Yrd Mat Min Exi Min Mat Fac Fac Ext Cet Used RIF Installer . | . . . . . . . . . . Robots Hacked . | . . . . . . . . . . Non-combat . | . . . . . . . . . . Combat . | . . . . . . . . . . Robot Hacks Applied . | . . . . . . . . . . Relay Couplers Released . | . . . . . . . . . . Fabnet Peak Effective % 3 | . . . . . . . 3 3 3 Robots Rewired 3 | . . . . . . . . 3 . Allies Hacked . | . . . . . . . . . . Hacks Repelled . | . . . . . . . . . . Allies | -11 -10 -10 -10 -9 -8 -7 -6 -6 -6 -------- Run | Yrd Mat Min Exi Min Mat Fac Fac Ext Cet Total Allies 12 | . . 1 . . . 2 1 8 . Largest Group 8 | . . 1 1 1 . 2 1 8 . Highest-Rated Group 230 | . . 31 31 31 . 36 10 230 . Highest-Rated Ally 39 | . . 31 31 31 . 26 10 39 . Total Orders 2 | . . . . . . 2 . . . STAY 2 | . . . . . . 2 . . . Ally Attacks 115 | . . . . 6 . . . 109 . Total Damage 1791 | . . . . 43 . . . 1748 . Kills 12 | . . . . 1 . . . 11 . Allies Corrupted . | . . . . . . . . . . Allies Melted . | . . . . . . . . . . Intel | -11 -10 -10 -10 -9 -8 -7 -6 -6 -6 ------- Run | Yrd Mat Min Exi Min Mat Fac Fac Ext Cet Robot Analysis Total . | . . . . . . . . . . Derelict Logs Recovered 2 | . . 2 . . . . . . . Drone Launches . | . . . . . . . . . . Drone Recoveries . | . . . . . . . . . . Exploration | -11 -10 -10 -10 -9 -8 -7 -6 -6 -6 ------------- Run | Yrd Mat Min Exi Min Mat Fac Fac Ext Cet Turns Passed 6192 | 65 641 563 286 117 1291 1841 326 985 77 Spaces Moved 6199 | 49 442 409 266 109 705 2906 562 719 32 Core 34 | 5 . . . . 11 . . . 18 Treads . | . . . . . . . . . . Legs 2016 | 44 442 409 266 109 350 . . 382 14 Wheels . | . . . . . . . . . . Hover 4149 | . . . . . 344 2906 562 337 . Flight . | . . . . . . . . . . Fastest Speed 36 | 50 120 105 105 105 43 38 36 38 50 Average Speed 69 | 112 120 117 105 105 115 39 38 95 80 Slowest Speed 700 | 120 120 120 105 105 700 45 101 190 120 Overloaded Moves . | . . . . . . . . . . Propulsion Burnouts . | . . . . . . . . . . Robots Hopped 1 | . . . . . . . . 1 . Cave-ins Triggered . | . . . . . . . . . . Exploration Rate (%) 51 | 3 79 92 68 37 59 67 14 77 20 Regions Visited 9 Branch Regions 5 Pre-discovered Areas 2 | . . 1 1 . . . . . . Known Exits Taken 2 | . . . 1 . . . . 1 . Unknown Exits Taken 7 | 1 1 1 . 1 1 1 1 . . Scrap Searched 3 | . . 2 . 1 . . . . . Spaces Dug 18 | . . . . . 8 6 4 . . Terrain Destroyed 712 | . 21 39 . . 177 168 5 240 62 Melee 10 | . . . . . . 6 4 . . Projectile 19 | . . . . . 5 7 1 4 2 AOE 683 | . 21 39 . . 172 155 . 236 60 Terrain Rammed . | . . . . . . . . . . Walls Destroyed . | . . . . . . . . . . Machines Disabled . | . . . . . . . . . . Actions | -11 -10 -10 -10 -9 -8 -7 -6 -6 -6 --------- Run | Yrd Mat Min Exi Min Mat Fac Fac Ext Cet Total 7602 | 55 500 469 274 111 1068 3484 641 945 55 Wait 714 | . 6 13 3 3 156 400 31 102 . Move 6190 | 48 441 408 265 108 705 2906 561 716 32 Hop 1 | . . . . . . . . 1 . Pick Up 57 | 1 8 6 1 . 19 16 3 3 . Fast Attach 69 | 6 4 5 1 . 13 19 6 15 . Attach 37 | . . . . . 13 8 5 7 4 Detach 13 | . . 1 . . 6 1 1 3 1 Swap 53 | . 6 5 1 . 18 14 5 3 1 Drop 102 | . 7 14 3 . 26 33 9 10 . Fire 277 | . 28 17 . . 112 54 8 41 17 Melee 68 | . . . . . . 33 12 23 . Ram . | . . . . . . . . . . Kick . | . . . . . . . . . . Crush . | . . . . . . . . . . Escape Stasis 13 | . . . . . . . . 13 . Rewire 8 | . . . . . . . . 8 . Trap . | . . . . . . . . . . Miscellaneous . | . . . . . . . . . . Route ------- -11/Scrapyard -10/Materials (discovered 3 exits: [*Mat x2] / *Min) -10/Mines (discovered 4 exits: [*Mat x2] / *Exi / [*Sub]) -10/Exiles (discovered 2 exits: *Min x2) -9/Mines -8/Materials -7/Factory (discovered 3 exits: *Fac / *Low x2) -6/Factory -6/Extension (discovered 3 exits: *Fac x2 / *Cet) -6/Cetus History --------- Turn | Location | Event 3 | -11/Scrapyard | Discovered new exit (range 15) 66 | -11/Scrapyard | Entered Materials 309 | -10/Materials | Build established: Mutant 354 | -10/Materials | Discovered new exit (range 5) 413 | -10/Materials | Discovered new exit (range 7) 444 | -10/Materials | Discovered new exit (range 5) 707 | -10/Materials | Entered Mines 812 | -10/Mines | Discovered new exit (range 9) 908 | -10/Mines | Discovered new exit (range 8) 1007 | -10/Mines | Learned location of Mines (-9) 1072 | -10/Mines | Met a Derelict shopkeep closing up shop 1186 | -10/Mines | Met a Derelict who couldn't figure out how to use a Trap Extractor 1222 | -10/Mines | Met a Derelict testing a Signal Generator 1236 | -10/Mines | Discovered new exit (range 9) 1265 | -10/Mines | Deemed a non-threat by the Exiles lab entrance 1265 | -10/Mines | Discovered new exit (range 6) 1270 | -10/Mines | Entered Exiles 1270 | -10/Exiles | Accompanied by 1 ally 1271 | -10/Exiles | Identified exit to Mines 1295 | -10/Exiles | Met 8R-AWN 1314 | -10/Exiles | Met EX-HEX 1345 | -10/Exiles | Met EX-BIN 1358 | -10/Exiles | Aligned with FarCom system 1359 | -10/Exiles | Given EX-Vault access code 1384 | -10/Exiles | Opened EX-Vault 1393 | -10/Exiles | Found Trap Reconfigurator 1420 | -10/Exiles | Warned to stay clear of 0b10 Research branches 1489 | -10/Exiles | Met EX-DEC 1507 | -10/Exiles | Learned location of Zion (-7) 1556 | -10/Exiles | Left Exiles lab with Trap Reconfigurator 1556 | -10/Exiles | Entered Mines 1556 | -9/Mines | Accompanied by 1 ally 1557 | -9/Mines | Assembled infested the area 1664 | -9/Mines | Discovered new exit (range 9) 1673 | -9/Mines | Entered Materials 1673 | -8/Materials | Evolved 4 slots: Propulsion x2, Utility x2 2462 | -8/Materials | Lost 5 parts (3n2w) 2860 | -8/Materials | Repaired Hvy. Missile Launcher 2873 | -8/Materials | First assault squad dispatched 2955 | -8/Materials | Discovered new exit (range 5) 2964 | -8/Materials | Entered Factory 2964 | -7/Factory | Evolved 2 slots: Utility x2 2986 | -7/Factory | Build established: Hacker-Mutant 3197 | -7/Factory | Discovered new exit (range 14) 3350 | -7/Factory | Discovered new exit (range 8) 3357 | -7/Factory | Identified exit to Lower Caves 3623 | -7/Factory | Repaired Assault Cannon 4008 | -7/Factory | Repaired Cld. Airjet 4044 | -7/Factory | Repaired Cld. Airjet 4313 | -7/Factory | Cargo convoy interrupted 4339 | -7/Factory | Found Prototype Launcher 4339 | -7/Factory | Identified Rocket Array 4347 | -7/Factory | Destroyed 9 combat bots 4802 | -7/Factory | Discovered new exit (range 7) 4805 | -7/Factory | Entered another Factory area 4805 | -6/Factory | Evolved 2 slots: Propulsion x1, Utility x1 5074 | -6/Factory | Fabricated T-07 Excavator? 5125 | -6/Factory | Discovered new exit (range 16) 5131 | -6/Factory | Entered Extension 5140 | -6/Extension | Disrupted transfer network 5154 | -6/Extension | Rescued a captive Derelict 5155 | -6/Extension | Rescued a captive Derelict 5160 | -6/Extension | Rescued a captive Derelict 5161 | -6/Extension | Rescued a captive Derelict 5222 | -6/Extension | Found Launcher Loader 5294 | -6/Extension | Energy Cycler disabled 5295 | -6/Extension | Rescued a captive Derelict 5295 | -6/Extension | Rescued a captive Derelict 5299 | -6/Extension | Rescued a captive Derelict 5300 | -6/Extension | Rescued a captive Derelict 5302 | -6/Extension | Build established: Hacker-Ninja 5723 | -6/Extension | Spotted B-75 Beast 5742 | -6/Extension | Destroyed B-75 Beast 5770 | -6/Extension | Discovered new exit (range 15) 5770 | -6/Extension | Spotted B-75 Beast 5774 | -6/Extension | Allies destroyed B-75 Beast 5789 | -6/Extension | Destroyed 10 combat bots 5797 | -6/Extension | Lost 3 parts (2n1w) 5831 | -6/Extension | First assault squad dispatched 5958 | -6/Extension | Destroyed 7 combat bots 5959 | -6/Extension | Lost 3 parts (1n1u1w) 5982 | -6/Extension | Build established: Scavenger-Mutant 6064 | -6/Extension | Discovered new exit (range 16) 6065 | -6/Extension | Discovered new exit (range 15) 6088 | -6/Extension | Identified exit to Cetus 6092 | -6/Extension | Identified exit to Factory 6116 | -6/Extension | Entered Cetus 6133 | -6/Cetus | Spotted Cetus Guard 6133 | -6/Cetus | Spotted Cetus Guard 6135 | -6/Cetus | Spotted Cetus Guard 6137 | -6/Cetus | Spotted Cetus Guard 6156 | -6/Cetus | Destroyed Cetus Guard 6172 | -6/Cetus | Core integrity fell below 50% 6186 | -6/Cetus | Core integrity fell below 20% 6193 | -6/Cetus | Destroyed by Cetus Guard with Advanced Variable Charge Gun Last Messages --------------- (Destroy). 06171_ Destroyed Prototype Treads. 06171_ Penetrated by Slug. 06174_ HV Slug penetrates Wall. 06174_ Penetrated by Slug. 06174_ Hacking Suite destroyed. 06175_ Slug penetrates Earth. 06177_ Slug penetrates Cetus Guard. 06177_ HV Slug penetrates Cetus Guard. 06177_ Critical hit (Destroy). 06177_ Bore Cannon destroyed. 06178_ Penetrated by Slug. 06180_ Slug penetrates Cetus Guard. 06181_ Penetrated by Slug. 06182_ Slug penetrates Cetus Guard. 06183_ Adv. KE Penetrator destroyed. 06184_ Penetrated by Slug. 06187_ Slug penetrates Wall. 06190_ Cetus Guard destroyed. 06190_ Penetrated by Slug. Map ----- +----------------------------------------------------+ | ?????????????????????????????????????????????????? | | ?????????????????????????????????????????????????? | | ?????????????????????????????????????????????????? | | ?????????????????????????????????????????????????? | | ?????????????????????????????????????????????????? | | ?????????????????????????????????????????????????? | | ?????????????????????????????????????????????????? | | ?????????????????????????????????????????????????? | | ?????????????????????????????????????????????????? | | ?????????????????????????????????????????????????? | | ????????????? ?????????????????????????????????? | | ????????????# #????????????????????????????????? | | ????????????# #????????????????????????????????? | | ????????????# #????????????????????????????????? | | ????????????# #????????????????????????????????? | | ????????????# #????????????????????????????????? | | ????????????# #????????????????????????????????? | | ????????????# #????????????????????????????????? | | ????????????# #????????????????????????????????? | | ????????????# #?#######????????????????????????? | | ????????????# ### # ###??????????????????????? | | ??????####### # #??????????????????????? | | ?????## # # ## #????????? ""?????????? | | ######"""";;; ##???? ????????? | | Y + ????????? | | %% @ ; ????????? | | Y + ????????? | | #########"""#;## % ##???? ????????? | | ????????######### # #????????? """?????????? | | ????????????????# # #??????????????????????? | | ????????????????### # # ###??????????????????????? | | ??????????????????#######????????????????????????? | | ?????????????????????????????????????????????????? | | ?????????????????????????????????????????????????? | | ?????????????????????????????????????????????????? | | ?????????????????????????????????????????????????? | | ?????????????????????????????????????????????????? | | ?????????????????????????????????????????????????? | | ?????????????????????????????????????????????????? | | ?????????????????????????????????????????????????? | | ?????????????????????????????????????????????????? | | ?????????????????????????????????????????????????? | | ?????????????????????????????????????????????????? | | ?????????????????????????????????????????????????? | | ?????????????????????????????????????????????????? | | ?????????????????????????????????????????????????? | | ?????????????????????????????????????????????????? | | ?????????????????????????????????????????????????? | | ?????????????????????????????????????????????????? | | ?????????????????????????????????????????????????? | +----------------------------------------------------+ Best States ------------- Heat Dissipation 51 Energy Generation 21 Energy Capacity 325 Matter Stores 300 Matter Capacity 300 Sight Range 16 Terrain Scan Range 20 Terrain Scan Density 110 Jamming Range 12 Armor Coverage 225 Weapon Shielding 66 Evasion (%) 57 Core Analysis 6 Matter Filtering 50 Offensive Hacking 20 Defensive Hacking 20 Item Schematics ----------------- None Robot Schematics ------------------ None Fabricated ------------ T-07 Excavator | x1 | -6/Factory | Preloaded Alien Tech Used ----------------- None Achievements -------------- None Challenges ------------ None Game ------ Seed BorePoweredFragment Manual? 0 Play Time 01:24:27 Cumulative 134.6 hours Start 2024.04.28 @ 16:20:19 End 2024.04.28 @ 17:44:34 Sessions 1 Manual Loads 0 Difficulty Rogue Special Mode None Game No. 139 Rogue 134 Adventurer 5 Explorer 0 Win Type - Total 3 Types 2/0/0/1/0/0/0/0/0 Lore% 52 Gallery% 68 Achievement% 50 Wizard Run 0 Options --------- Layout 1 ASCII 0 Keyboard 0 Movement Mouse Keybinds 0 Fullscreen 1 Font 24/Terminus Map View 50x35 Zoom Use 0% Tactical HUD 1 Map Filters NONE Filters NONE Steam 1 RUN: ab35d321-102d-46ca-8b8c-5f478ce70701